Workbook

Sheet General data
A1: Annex 1
A2: ISSUER’S GENERAL DATA | N2: 1.
N3: 2.
A4: Reporting period: | E4: 2025-01-01 | G4: to | H4: 2025-09-30 | N4: 3.
N5: 4.
B6: Year: | E6: 2025
B8: Quarter: | E8: 3.
A10: Quarterly financial statements
A11: Registration number (MB): | C11: 03440494 | F11: Issuer’s home Member State code: | H11: HR
A13: Entity’s registration number (MBS): | C13: 060007090
A15: Personal identification number (OIB): | C15: 48351740621 | G15: LEI: | H15: 549300NFX18SRZHNT751
B17: Institution code: | C17: 382
A19: Name of the issuer: | C19: AD PLASTIK d.d.
A21: Postcode and town: | C21: 21210 | G21: SOLIN
A23: Street and house number: | C23: Matoševa 8
A25: E-mail address: | C25: informacije@adplastik.hr
A27: Web address: | C27: www.adplastik.hr
A29: Number of employees (end of the reporting period): | C29: 1126
A31: Consolidated report: | C31: KN | D31: (KN-not consolidated/KD-consolidated) | I31: KN | J31: KD
A33: Audited: | C33: RN | D33: (RN-not audited/RD-audited) | I33: RN | J33: RD
A35: Names of subsidiaries (according to IFRS): | E35: Registered office: | J35: MB:
J48: Yes
J49: No
A50: Bookkeeping firm: | C50: No | E50: (Yes/No)
G51: (name of the bookkeeping firm)
A52: Contact person: | C52: Jurun Krešimir
C53: (only name and surname of the contact person)
A54: Telephone: | C54: 021/206-663
A56: E-mail address: | C56: kresimir.jurun@adplastik.hr
A58: Audit firm:
C59: (name of the audit firm)
A60: Certified auditor:
C61: (name and surname)

Sheet Balance sheet
A1: BALANCE SHEET
A2: balance as at 30.09.2025
A3: in EUR
A4: Submitter: AD PLASTIK d.d.
A5: Item | G5: ADP code | H5: Last day of the preceding business year | I5: At the reporting date of the current period
A6: 1 | G6: 2 | H6: 3 | I6: 4
A8: A) RECEIVABLES FOR SUBSCRIBED CAPITAL UNPAID | G8: 001 | H8: 0 | I8: 0
A9: B) FIXED ASSETS (ADP 003+010+020+031+036) | G9: 002 | H9: =H10+H17+H27+H38+H43 -> 115,790,001 | I9: =I10+I17+I27+I38+I43 -> 110,140,504
A10: I INTANGIBLE ASSETS (ADP 004 to 009) | G10: 003 | H10: =H11+H12+H13+H14+H15+H16 -> 9,278,055 | I10: =I11+I12+I13+I14+I15+I16 -> 8,819,149
A11: 1 Research and development | G11: 004 | H11: 6,008,393 | I11: 7,012,593
A12: 2 Concessions, patents, licences, trademarks, software and other rights | G12: 005 | H12: 140,415 | I12: 91,024
A13: 3 Goodwill | G13: 006 | H13: 0 | I13: 0
A14: 4 Advances for the purchase of intangible assets | G14: 007 | H14: 0 | I14: 0
A15: 5 Intangible assets in preparation | G15: 008 | H15: 3,123,521 | I15: 1,711,200
A16: 6 Other intangible assets | G16: 009 | H16: 5,726 | I16: 4,332
A17: II TANGIBLE ASSETS (ADP 011 to 019) | G17: 010 | H17: =H18+H19+H20+H21+H22+H23+H24+H25+H26 -> 74,430,896 | I17: =I18+I19+I20+I21+I22+I23+I24+I25+I26 -> 70,606,232
A18: 1 Land | G18: 011 | H18: 17,365,617 | I18: 17,335,897
A19: 2 Buildings | G19: 012 | H19: 23,548,739 | I19: 23,026,862
A20: 3 Plant and equipment | G20: 013 | H20: 21,672,755 | I20: 19,670,853
A21: 4 Tools, working inventory and transportation assets | G21: 014 | H21: 3,969,001 | I21: 3,777,672
A22: 5 Biological assets | G22: 015 | H22: 0 | I22: 0
A23: 6 Advances for the purchase of tangible assets | G23: 016 | H23: 0 | I23: 0
A24: 7 Tangible assets in preparation | G24: 017 | H24: 2,511,367 | I24: 2,187,506
A25: 8 Other tangible assets | G25: 018 | H25: 2,146,229 | I25: 1,419,702
A26: 9 Investment property | G26: 019 | H26: 3,217,188 | I26: 3,187,740
A27: III FIXED FINANCIAL ASSETS (ADP 021 to 030) | G27: 020 | H27: =SUM(H28:H37) -> 26,695,953 | I27: =SUM(I28:I37) -> 25,743,079
A28: 1 Investments in holdings (shares) of undertakings within the group | G28: 021 | H28: 10,099,527 | I28: 10,099,527
A29: 2 Investments in other securities of undertakings within the group | G29: 022 | H29: 0 | I29: 0
A30: 3 Loans, deposits, etc. to undertakings within the group | G30: 023 | H30: 13,709,021 | I30: 12,756,147
A31: 4. Investments in holdings (shares) of companies linked by virtue of participating interests | G31: 024 | H31: 2,887,405 | I31: 2,887,405
A32: 5 Investment in other securities of companies linked by virtue of participating interests | G32: 025 | H32: 0 | I32: 0
A33: 6 Loans, deposits etc. to companies linked by virtue of participating interests | G33: 026 | H33: 0 | I33: 0
A34: 7 Investments in securities | G34: 027 | H34: 0 | I34: 0
A35: 8 Loans, deposits, etc. given | G35: 028 | H35: 0 | I35: 0
A36: 9 Other investments accounted for using the equity method | G36: 029 | H36: 0 | I36: 0
A37: 10 Other fixed financial assets | G37: 030 | H37: 0 | I37: 0
A38: IV RECEIVABLES (ADP 032 to 035) | G38: 031 | H38: =H39+H40+H41+H42 -> 2,221,566 | I38: =I39+I40+I41+I42 -> 2,221,566
A39: 1 Receivables from undertakings within the group | G39: 032 | H39: 2,221,566 | I39: 2,221,566
A40: 2 Receivables from companies linked by virtue of participating interests | G40: 033 | H40: 0 | I40: 0
A41: 3 Customer receivables | G41: 034 | H41: 0 | I41: 0
A42: 4 Other receivables | G42: 035 | H42: 0 | I42: 0
A43: V DEFERRED TAX ASSETS | G43: 036 | H43: 3,163,531 | I43: 2,750,478
A44: C) CURRENT ASSETS (ADP 038+046+053+063) | G44: 037 | H44: =H45+H53+H60+H70 -> 41,500,447 | I44: =I45+I53+I60+I70 -> 46,108,321
A45: I INVENTORIES (ADP 039 to 045) | G45: 038 | H45: =SUM(H46:H52) -> 11,294,327 | I45: =SUM(I46:I52) -> 11,431,807
A46: 1 Raw materials and consumables | G46: 039 | H46: 6,447,952 | I46: 5,837,757
A47: 2 Work in progress | G47: 040 | H47: 1,071,089 | I47: 1,452,086
A48: 3 Finished goods | G48: 041 | H48: 1,817,904 | I48: 1,910,799
A49: 4 Merchandise | G49: 042 | H49: 1,362,358 | I49: 1,313,213
A50: 5 Advances for inventories | G50: 043 | H50: 595,024 | I50: 917,952
A51: 6 Fixed assets held for sale | G51: 044 | H51: 0 | I51: 0
A52: 7 Biological assets | G52: 045 | H52: 0 | I52: 0
A53: II RECEIVABLES (ADP 047 to 052) | G53: 046 | H53: =SUM(H54:H59) -> 23,892,746 | I53: =SUM(I54:I59) -> 26,755,636
A54: 1 Receivables from undertakings within the group | G54: 047 | H54: 4,599,104 | I54: 4,009,085
A55: 2 Receivables from companies linked by virtue of participating interests | G55: 048 | H55: 4,744,454 | I55: 1,196,073
A56: 3 Customer receivables | G56: 049 | H56: 12,572,559 | I56: 18,624,808
A57: 4 Receivables from employees and members of the undertaking | G57: 050 | H57: 8,863 | I57: 24,166
A58: 5 Receivables from government and other institutions | G58: 051 | H58: 1,644,738 | I58: 2,737,649
A59: 6 Other receivables | G59: 052 | H59: 323,028 | I59: 163,855
A60: III CURRENT FINANCIAL ASSETS (ADP 054 to 062) | G60: 053 | H60: =SUM(H61:H69) -> 3,267,354 | I60: =SUM(I61:I69) -> 3,019,845
A61: 1 Investments in holdings (shares) of undertakings within the group | G61: 054 | H61: 0 | I61: 0
A62: 2 Investments in other securities of undertakings within the group | G62: 055 | H62: 0 | I62: 0
A63: 3 Loans, deposits, etc. to undertakings within the group | G63: 056 | H63: 3,267,354 | I63: 3,019,845
A64: 4 Investments in holdings (shares) of companies linked by virtue of participating interests | G64: 057 | H64: 0 | I64: 0
A65: 5 Investment in other securities of companies linked by virtue of participating interests | G65: 058 | H65: 0 | I65: 0
A66: 6 Loans, deposits etc. to companies linked by virtue of participating interests | G66: 059 | H66: 0 | I66: 0
A67: 7 Investments in securities | G67: 060 | H67: 0 | I67: 0
A68: 8 Loans, deposits, etc. given | G68: 061 | H68: 0 | I68: 0
A69: 9 Other financial assets | G69: 062 | H69: 0 | I69: 0
A70: IV CASH AT BANK AND IN HAND | G70: 063 | H70: 3,046,020 | I70: 4,901,033
A71: D ) PREPAID EXPENSES AND ACCRUED INCOME | G71: 064 | H71: 800,592 | I71: 543,437
A72: E) TOTAL ASSETS (ADP 001+002+037+064) | G72: 065 | H72: =H8+H9+H44+H71 -> 158,091,040 | I72: =I8+I9+I44+I71 -> 156,792,262
A73: OFF-BALANCE SHEET ITEMS | G73: 066 | H73: 9,222,292 | I73: 8,299,160
A74: LIABILITIES
A75: A) CAPITAL AND RESERVES (ADP 068 to 070+076+077+083+086+089) | G75: 067 | H75: =H76+H77+H78+H84+H85+H91+H94+H97 -> 91,544,741 | I75: =I76+I77+I78+I84+I85+I91+I94+I97 -> 95,348,281
A76: I INITIAL (SUBSCRIBED) CAPITAL | G76: 068 | H76: 54,594,592 | I76: 54,594,592
A77: II CAPITAL RESERVES | G77: 069 | H77: 25,839,403 | I77: 25,839,403
A78: III RESERVES FROM PROFIT (ADP 071+072-073+074+075) | G78: 070 | H78: =SUM(H79:H83) -> 9,923,041 | I78: =SUM(I79:I83) -> 9,923,041
A79: 1 Legal reserves | G79: 071 | H79: 813,439 | I79: 813,439
A80: 2 Reserves for treasury shares | G80: 072 | H80: 793,595 | I80: 793,595
A81: 3 Treasury shares and holdings (deductible item) | G81: 073 | H81: -793,595 | I81: -793,595
A82: 4 Statutory reserves | G82: 074 | H82: 0 | I82: 0
A83: 5 Other reserves | G83: 075 | H83: 9,109,602 | I83: 9,109,602
A84: IV REVALUATION RESERVES | G84: 076 | H84: 0 | I84: 0
A85: V FAIR VALUE RESERVES AND OTHER (ADP 078 to 082) | G85: 077 | H85: =H86+H87+H88+H89+H90 -> 0 | I85: =I86+I87+I88+I89+I90 -> 0
A86: 1 Financial assets at fair value through other comprehensive income (i.e. available for sale) | G86: 078 | H86: 0 | I86: 0
A87: 2 Cash flow hedge - effective portion | G87: 079 | H87: 0 | I87: 0
A88: 3 Hedge of a net investment in a foreign operation - effective portion | G88: 080 | H88: 0 | I88: 0
A89: 4 Other fair value reserves | G89: 081 | H89: 0 | I89: 0
A90: 5 Exchange differences arising from the translation of foreign operations (consolidation) | G90: 082 | H90: 0 | I90: 0
A91: VI RETAINED PROFIT OR LOSS BROUGHT FORWARD (ADP 084-085) | G91: 083 | H91: =H92-H93 -> 789,991 | I91: =I92-I93 -> 1,187,705
A92: 1 Retained profit | G92: 084 | H92: 789,991 | I92: 1,187,705
A93: 2 Loss brought forward | G93: 085 | H93: 0 | I93: 0
A94: VII PROFIT OR LOSS FOR THE BUSINESS YEAR (ADP 087-088) | G94: 086 | H94: =H95-H96 -> 397,714 | I94: =I95-I96 -> 3,803,540
A95: 1 Profit for the business year | G95: 087 | H95: 397,714 | I95: 3,803,540
A96: 2 Loss for the business year | G96: 088 | H96: 0 | I96: 0
A97: VIII MINORITY (NON-CONTROLLING) INTEREST | G97: 089 | H97: 0 | I97: 0
A98: B) PROVISIONS (ADP 091 to 096) | G98: 090 | H98: =SUM(H99:H104) -> 369,303 | I98: =SUM(I99:I104) -> 369,303
A99: 1 Provisions for pensions, termination benefits and similar obligations | G99: 091 | H99: 216,434 | I99: 216,434
A100: 2 Provisions for tax liabilities | G100: 092 | H100: 0 | I100: 0
A101: 3 Provisions for ongoing legal cases | G101: 093 | H101: 0 | I101: 0
A102: 4 Provisions for renewal of natural resources | G102: 094 | H102: 0 | I102: 0
A103: 5 Provisions for warranty obligations | G103: 095 | H103: 0 | I103: 0
A104: 6 Other provisions | G104: 096 | H104: 152,869 | I104: 152,869
A105: C) LONG-TERM LIABILITIES (ADP 098 to 108) | G105: 097 | H105: =SUM(H106:H116) -> 17,765,415 | I105: =SUM(I106:I116) -> 20,007,818
A106: 1 Liabilities to undertakings within the group | G106: 098 | H106: 0 | I106: 0
A107: 2 Liabilities for loans, deposits, etc. of undertakings within the group | G107: 099 | H107: 0 | I107: 0
A108: 3 Liabilities to companies linked by virtue of participating interests | G108: 100 | H108: 0 | I108: 0
A109: 4 Liabilities for loans, deposits etc. of companies linked by virtue of participating interests | G109: 101 | H109: 0 | I109: 0
A110: 5 Liabilities for loans, deposits etc. | G110: 102 | H110: 0 | I110: 25,500
A111: 6 Liabilities to banks and other financial institutions | G111: 103 | H111: 16,178,242 | I111: 18,805,970
A112: 7 Liabilities for advance payments | G112: 104 | H112: 0 | I112: 0
A113: 8 Liabilities to suppliers | G113: 105 | H113: 0 | I113: 0
A114: 9 Liabilities for securities | G114: 106 | H114: 0 | I114: 0
A115: 10 Other long-term liabilities | G115: 107 | H115: 1,200,852 | I115: 790,027
A116: 11 Deferred tax liability | G116: 108 | H116: 386,321 | I116: 386,321
A117: D) SHORT-TERM LIABILITIES (ADP 110 to 123) | G117: 109 | H117: =SUM(H118:H131) -> 47,781,791 | I117: =SUM(I118:I131) -> 40,812,343
A118: 1 Liabilities to undertakings within the group | G118: 110 | H118: 1,627,532 | I118: 2,192,829
A119: 2 Liabilities for loans, deposits, etc. of undertakings within the group | G119: 111 | H119: 0 | I119: 0
A120: 3 Liabilities to companies linked by virtue of participating interests | G120: 112 | H120: 12,595 | I120: 15,133
A121: 4 Liabilities for loans, deposits etc. of companies linked by virtue of participating interests | G121: 113 | H121: 0 | I121: 0
A122: 5 Liabilities for loans, deposits etc. | G122: 114 | H122: 1,904,117 | I122: 0
A123: 6 Liabilities to banks and other financial institutions | G123: 115 | H123: 22,561,559 | I123: 14,287,658
A124: 7 Liabilities for advance payments | G124: 116 | H124: 877,947 | I124: 6,031,981
A125: 8 Liabilities to suppliers | G125: 117 | H125: 16,360,461 | I125: 14,500,928
A126: 9 Liabilities for securities | G126: 118 | H126: 0 | I126: 0
A127: 10 Liabilities to employees | G127: 119 | H127: 1,349,880 | I127: 1,437,094
A128: 11 Taxes, contributions and similar liabilities | G128: 120 | H128: 1,213,231 | I128: 826,958
A129: 12 Liabilities arising from the share in the result | G129: 121 | H129: 22,349 | I129: 22,349
A130: 13 Liabilities arising from fixed assets held for sale | G130: 122 | H130: 0 | I130: 0
A131: 14 Other short-term liabilities | G131: 123 | H131: 1,852,120 | I131: 1,497,413
A132: E) ACCRUALS AND DEFERRED INCOME | G132: 124 | H132: 629,790 | I132: 254,517
A133: F) TOTAL – LIABILITIES (ADP 067+090+097+109+124) | G133: 125 | H133: =H75+H98+H105+H117+H132 -> 158,091,040 | I133: =I75+I98+I105+I117+I132 -> 156,792,262
A134: G) OFF-BALANCE SHEET ITEMS | G134: 126 | H134: 9,222,292 | I134: 8,299,160

Sheet P&L
A1: STATEMENT OF PROFIT OR LOSS
A2: for the period 01.01.2025 to 30.09.2025
A3: in EUR
A4: Submitter: AD PLASTIK d.d.
A5: Item | G5: ADP code | H5: Same period of the previous year | J5: Current period
H6: Cumulative | I6: Quarter | J6: Cumulative | K6: Quarter
A7: 1 | G7: 2 | H7: 3 | I7: 4 | J7: 5 | K7: 6
A8: I OPERATING INCOME (ADP 002 to 006) | G8: 001 | H8: =SUM(H9:H13) -> 85,073,937 | I8: =SUM(I9:I13) -> 22,539,620 | J8: =SUM(J9:J13) -> 87,851,754 | K8: =SUM(K9:K13) -> 29,415,588
A9: 1 Income from sales with undertakings within the group | G9: 002 | H9: 2,481,300 | I9: 791,957 | J9: 2,523,623 | K9: 850,665
A10: 2 Income from sales (outside group) | G10: 003 | H10: 77,407,605 | I10: 20,046,190 | J10: 84,044,475 | K10: 28,291,498
A11: 3 Income from the use of own products, goods and services | G11: 004 | H11: 116,001 | I11: 248 | J11: 140,328 | K11: 138,398
A12: 4 Other operating income with undertakings within the group | G12: 005 | H12: 2,916,506 | I12: 1,066,639 | J12: 92,955 | K12: 33,275
A13: 5 Other operating income (outside the group) | G13: 006 | H13: 2,152,525 | I13: 634,586 | J13: 1,050,373 | K13: 101,752
A14: II OPERATING EXPENSES (ADP 08+009+013+017+018+019+022+029) | G14: 007 | H14: =H15+H16+H20+H24+H25+H26+H29+H36 -> 85,447,331 | I14: =I15+I16+I20+I24+I25+I26+I29+I36 -> 23,668,372 | J14: =J15+J16+J20+J24+J25+J26+J29+J36 -> 85,122,784 | K14: =K15+K16+K20+K24+K25+K26+K29+K36 -> 28,943,395
A15: 1 Changes in inventories of work in progress and finished goods | G15: 008 | H15: 326,204 | I15: 117,095 | J15: -474,670 | K15: -502,344
A16: 2 Material costs (ADP 010 to 012) | G16: 009 | H16: =SUM(H17:H19) -> 59,979,593 | I16: =SUM(I17:I19) -> 15,088,058 | J16: =SUM(J17:J19) -> 55,720,314 | K16: =SUM(K17:K19) -> 19,099,489
A17: a) Costs of raw materials and consumables | G17: 010 | H17: 32,794,196 | I17: 9,578,904 | J17: 39,684,904 | K17: 13,742,181
A18: b) Costs of goods sold | G18: 011 | H18: 21,155,184 | I18: 3,601,293 | J18: 9,565,144 | K18: 2,820,322
A19: c) Other external costs | G19: 012 | H19: 6,030,213 | I19: 1,907,861 | J19: 6,470,266 | K19: 2,536,986
A20: 3 Staff costs (ADP 014 to 016) | G20: 013 | H20: =SUM(H21:H23) -> 15,563,177 | I20: =SUM(I21:I23) -> 5,223,305 | J20: =SUM(J21:J23) -> 18,162,598 | K20: =SUM(K21:K23) -> 6,219,825
A21: a) Net salaries and wages | G21: 014 | H21: 9,735,109 | I21: 3,248,575 | J21: 11,131,698 | K21: 3,624,731
A22: b) Tax and contributions from salary costs | G22: 015 | H22: 3,810,352 | I22: 1,294,361 | J22: 4,598,060 | K22: 1,711,411
A23: c) Contributions on salaries | G23: 016 | H23: 2,017,716 | I23: 680,369 | J23: 2,432,840 | K23: 883,683
A24: 4 Depreciation | G24: 017 | H24: 5,882,437 | I24: 2,078,094 | J24: 7,265,080 | K24: 2,618,027
A25: 5 Other costs | G25: 018 | H25: 3,517,259 | I25: 1,106,900 | J25: 3,976,664 | K25: 1,448,944
A26: 6 Value adjustments (ADP 020+021) | G26: 019 | H26: =H27+H28 -> 0 | I26: =I27+I28 -> 0 | J26: =J27+J28 -> 0 | K26: =K27+K28 -> 0
A27: a) fixed assets other than financial assets | G27: 020 | H27: 0 | I27: 0 | J27: 0 | K27: 0
A28: b) current assets other than financial assets | G28: 021 | H28: 0 | I28: 0 | J28: 0 | K28: 0
A29: 7 Provisions (ADP 023 to 028) | G29: 022 | H29: =SUM(H30:H35) -> 0 | I29: =SUM(I30:I35) -> 0 | J29: =SUM(J30:J35) -> 0 | K29: =SUM(K30:K35) -> 0
A30: a) Provisions for pensions, termination benefits and similar obligations | G30: 023 | H30: 0 | I30: 0 | J30: 0 | K30: 0
A31: b) Provisions for tax liabilities | G31: 024 | H31: 0 | I31: 0 | J31: 0 | K31: 0
A32: c) Provisions for ongoing legal cases | G32: 025 | H32: 0 | I32: 0 | J32: 0 | K32: 0
A33: d) Provisions for renewal of natural resources | G33: 026 | H33: 0 | I33: 0 | J33: 0 | K33: 0
A34: e) Provisions for warranty obligations | G34: 027 | H34: 0 | I34: 0 | J34: 0 | K34: 0
A35: f) Other provisions | G35: 028 | H35: 0 | I35: 0 | J35: 0 | K35: 0
A36: 8 Other operating expenses | G36: 029 | H36: 178,661 | I36: 54,920 | J36: 472,798 | K36: 59,454
A37: III FINANCIAL INCOME (ADP 031 to 040) | G37: 030 | H37: =SUM(H38:H47) -> 3,066,286 | I37: =SUM(I38:I47) -> 1,020,570 | J37: =SUM(J38:J47) -> 2,425,895 | K37: =SUM(K38:K47) -> 796,239
A38: 1 Income from investments in holdings (shares) of undertakings within the group | G38: 031 | H38: 0 | I38: 0 | J38: 0 | K38: 0
A39: 2 Income from investments in holdings (shares) of companies linked by virtue of participating interests | G39: 032 | H39: 2,615,353 | I39: 871,784 | J39: 1,853,847 | K39: 617,334
A40: 3 Income from other long-term financial investment and loans granted to undertakings within the group | G40: 033 | H40: 0 | I40: 0 | J40: 0 | K40: 0
A41: 4 Other interest income from operations with undertakings within the group | G41: 034 | H41: 450,810 | I41: 147,136 | J41: 543,358 | K41: 178,886
A42: 5 Exchange rate differences and other financial income from operations with undertakings within the group | G42: 035 | H42: 0 | I42: 0 | J42: 0 | K42: 0
A43: 6 Income from other long-term financial investments and loans | G43: 036 | H43: 0 | I43: 0 | J43: 0 | K43: 0
A44: 7 Other interest income | G44: 037 | H44: 123 | I44: 53 | J44: 48 | K44: 19
A45: 8 Exchange rate differences and other financial income | G45: 038 | H45: 0 | I45: 1,597 | J45: 28,642 | K45: 0
A46: 9 Unrealised gains (income) from financial assets | G46: 039 | H46: 0 | I46: 0 | J46: 0 | K46: 0
A47: 10 Other financial income | G47: 040 | H47: 0 | I47: 0 | J47: 0 | K47: 0
A48: IV FINANCIAL EXPENSES (ADP 042 to 048) | G48: 041 | H48: =SUM(H49:H55) -> 993,074 | I48: =SUM(I49:I55) -> 337,820 | J48: =SUM(J49:J55) -> 938,272 | K48: =SUM(K49:K55) -> 316,863
A49: 1 Interest expenses and similar expenses with undertakings within the group | G49: 042 | H49: 0 | I49: 0 | J49: 0 | K49: 0
A50: 2 Exchange rate differences and other expenses from operations with undertakings within the group | G50: 043 | H50: 0 | I50: 0 | J50: 0 | K50: 0
A51: 3 Interest expenses and similar expenses | G51: 044 | H51: 990,196 | I51: 337,820 | J51: 894,990 | K51: 277,545
A52: 4 Exchange rate differences and other expenses | G52: 045 | H52: 2,878 | I52: 0 | J52: 43,282 | K52: 39,318
A53: 5 Unrealised losses (expenses) from financial assets | G53: 046 | H53: 0 | I53: 0 | J53: 0 | K53: 0
A54: 6 Value adjustments of financial assets (net) | G54: 047 | H54: 0 | I54: 0 | J54: 0 | K54: 0
A55: 7 Other financial expenses | G55: 048 | H55: 0 | I55: 0 | J55: 0 | K55: 0
A56: V SHARE IN PROFIT FROM UNDERTAKINGS LINKED BY VRITUE OF PARTICIPATING INTERESTS | G56: 049 | H56: 0 | I56: 0 | J56: 0 | K56: 0
A57: VI SHARE IN PROFIT FROM JOINT VENTURES | G57: 050 | H57: 0 | I57: 0 | J57: 0 | K57: 0
A58: VII SHARE IN LOSS OF COMPANIES LINKED BY VIRTUE OF PARTICIPATING INTEREST | G58: 051 | H58: 0 | I58: 0 | J58: 0 | K58: 0
A59: VIII SHARE IN LOSS OF JOINT VENTURES | G59: 052 | H59: 0 | I59: 0 | J59: 0 | K59: 0
A60: IX TOTAL INCOME (ADP 001+030+049 +050) | G60: 053 | H60: =H8+H37+H56+H57 -> 88,140,223 | I60: =I8+I37+I56+I57 -> 23,560,190 | J60: 90,277,649 | K60: 30,211,827
A61: X TOTAL EXPENDITURE (ADP 007+041+051 + 052) | G61: 054 | H61: =H14+H48+H58+H59 -> 86,440,405 | I61: =I14+I48+I58+I59 -> 24,006,192 | J61: 86,061,056 | K61: 29,260,258
A62: XI PRE-TAX PROFIT OR LOSS (ADP 053-054) | G62: 055 | H62: =H60-H61 -> 1,699,818 | I62: =I60-I61 -> -446,002 | J62: 4,216,593 | K62: 951,569
A63: 1 Pre-tax profit (ADP 053-054) | G63: 056 | H63: =+IF((H60-H61)>0,(H60-H61),0) -> 1,699,818 | I63: =+IF((I60-I61)>0,(I60-I61),0) -> 0 | J63: 4,216,593 | K63: 951,569
A64: 2 Pre-tax loss (ADP 054-053) | G64: 057 | H64: =+IF((H60-H61)<0,(H60-H61),0) -> 0 | I64: =+IF((I60-I61)<0,(I60-I61),0) -> -446,002 | J64: 0 | K64: 0
A65: XII INCOME TAX | G65: 058 | H65: 0 | I65: 0 | J65: 413,053 | K65: 32,921
A66: XIII PROFIT OR LOSS FOR THE PERIOD (ADP 055-059) | G66: 059 | H66: =H62-H65 -> 1,699,818 | I66: =I62-I65 -> -446,002 | J66: 3,803,540 | K66: 918,648
A67: 1 Profit for the period (ADP 055-059) | G67: 060 | H67: =+IF((H62-H65)>0,(H62-H65),0) -> 1,699,818 | I67: =+IF((I62-I65)>0,(I62-I65),0) -> 0 | J67: 3,803,540 | K67: 918,648
A68: 2 Loss for the period (ADP 059-055) | G68: 061 | H68: =+IF((H62-H65)<0,(H62-H65),0) -> 0 | I68: =+IF((I62-I65)<0,(I62-I65),0) -> -446,002 | J68: 0 | K68: 0
A69: DISCONTINUED OPERATIONS (to be filled in by undertakings subject to IFRS only with discontinued operations)
A70: XIV PRE-TAX PROFIT OR LOSS OF DISCONTINUED OPERATIONS (ADP 063-064) | G70: 062 | H70: =H71-H72 -> 0 | I70: =I71-I72 -> 0 | J70: =J71-J72 -> 0 | K70: =K71-K72 -> 0
A71: 1 Pre-tax profit from discontinued operations | G71: 063 | H71: 0 | I71: 0 | J71: 0 | K71: 0
A72: 2 Pre-tax loss on discontinued operations | G72: 064 | H72: 0 | I72: 0 | J72: 0 | K72: 0
A73: XV INCOME TAX OF DISCONTINUED OPERATIONS | G73: 065 | H73: 0 | I73: 0 | J73: 0 | K73: 0
A74: 1 Discontinued operations profit for the period (ADP 062-065) | G74: 066 | H74: 0 | I74: 0 | J74: 0 | K74: 0
A75: 2 Discontinued operations loss for the period (ADP 065-062) | G75: 067 | H75: 0 | I75: 0 | J75: 0 | K75: 0
A76: TOTAL OPERATIONS (to be filled in only by undertakings subject to IFRS with discontinued operations)
A77: XVI PRE-TAX PROFIT OR LOSS (ADP 055-+062) | G77: 068 | H77: 0 | I77: 0 | J77: 0 | K77: 0
A78: 1 Pre-tax profit (ADP 068) | G78: 069 | H78: 0 | I78: 0 | J78: 0 | K78: 0
A79: 2 Pre-tax loss (ADP 068) | G79: 070 | H79: 0 | I79: 0 | J79: 0 | K79: 0
A80: XVII INCOME TAX (ADP 058+065) | G80: 071 | H80: 0 | I80: 0 | J80: 0 | K80: 0
A81: XVIII PROFIT OR LOSS FOR THE PERIOD (ADP 068-071) | G81: 072 | H81: 0 | I81: 0 | J81: 0 | K81: 0
A82: 1 Profit for the period (ADP 068-071) | G82: 073 | H82: 0 | I82: 0 | J82: 0 | K82: 0
A83: 2 Loss for the period (ADP 071-068) | G83: 074 | H83: 0 | I83: 0 | J83: 0 | K83: 0
A84: APPENDIX to the P&L (to be filled in by undertakings that draw up consolidated annual financial statements)
A85: XIX PROFIT OR LOSS FOR THE PERIOD (ADP 076+077) | G85: 075 | H85: =H86+H87 -> 0 | I85: =I86+I87 -> 0 | J85: =J86+J87 -> 0 | K85: =K86+K87 -> 0
A86: 1 Attributable to owners of the parent | G86: 076 | H86: 0 | I86: 0 | J86: 0 | K86: 0
A87: 2 Attributable to minority (non-controlling) interest | G87: 077 | H87: 0 | I87: 0 | J87: 0 | K87: 0
A88: STATEMENT OF OTHER COMPRHENSIVE INCOME (to be filled in by undertakings subject to IFRS)
A89: I PROFIT OR LOSS FOR THE PERIOD | G89: 078 | H89: 1,699,818 | I89: -446,002 | J89: 3,803,540 | K89: 918,648
A90: II OTHER COMPREHENSIVE INCOME/LOSS BEFORE TAX (ADP 80+ 87) | G90: 079 | H90: =H91+H98 -> 0 | I90: =I91+I98 -> 0 | J90: 0 | K90: 0
A91: III Items that will not be reclassified to profit or loss (ADP 081 to 085) | G91: 080 | H91: =SUM(H92:H96) -> 0 | I91: =SUM(I92:I96) -> 0 | J91: =SUM(J92:J96) -> 0 | K91: =SUM(K92:K96) -> 0
A92: 1 Changes in revaluation reserves of fixed tangible and intangible assets | G92: 081 | H92: 0 | I92: 0 | J92: 0 | K92: 0
A93: 2 Gains or losses from subsequent measurement of equity instruments at fair value through other comprehensive income | G93: 082 | H93: 0 | I93: 0 | J93: 0 | K93: 0
A94: 3 Fair value changes of financial liabilities at fair value through statement of profit or loss, attributable to changes in their credit risk | G94: 083 | H94: 0 | I94: 0 | J94: 0 | K94: 0
A95: 4 Actuarial gains/losses on the defined benefit obligation | G95: 084 | H95: 0 | I95: 0 | J95: 0 | K95: 0
A96: 5 Other items that will not be reclassified | G96: 085 | H96: 0 | I96: 0 | J96: 0 | K96: 0
A97: 6 Income tax relating to items that will not be reclassified | G97: 086 | H97: 0 | I97: 0 | J97: 0 | K97: 0
A98: IV Items that may be reclassified to profit or loss (ADP 088 to 095) | G98: 087 | H98: =SUM(H99:H106) -> 0 | I98: =SUM(I99:I106) -> 0 | J98: =SUM(J99:J106) -> 0 | K98: 0
A99: 1 Exchange rate differences from translation of foreign operations | G99: 088 | H99: 0 | I99: 0 | J99: 0 | K99: 0
A100: 2 Gains or losses from subsequent measurement of debt securities at fair value through other comprehensive income | G100: 089 | H100: 0 | I100: 0 | J100: 0 | K100: 0
A101: 3 Profit or loss arising from effective cash flow hedging | G101: 090 | H101: 0 | I101: 0 | J101: 0 | K101: 0
A102: 4 Profit or loss arising from effective hedge of a net investment in a foreign operation | G102: 091 | H102: 0 | I102: 0 | J102: 0 | K102: 0
A103: 5 Share in other comprehensive income/loss of companies linked by virtue of participating interests | G103: 092 | H103: 0 | I103: 0 | J103: 0 | K103: 0
A104: 6 Changes in fair value of the time value of option | G104: 093 | H104: 0 | I104: 0 | J104: 0 | K104: 0
A105: 7 Changes in fair value of forward elements of forward contracts | G105: 094 | H105: 0 | I105: 0 | J105: 0 | K105: 0
A106: 8 Other items that may be reclassified to profit or loss | G106: 095 | H106: 0 | I106: 0 | J106: 0 | K106: 0
A107: 9 Income tax relating to items that may be reclassified to profit or loss | G107: 096 | H107: 0 | I107: 0 | J107: 0 | K107: 0
A108: V NET OTHER COMPREHENSIVE INCOME OR LOSS (ADP 080+087- 086 - 096) | G108: 097 | H108: =H91+H98-H107-H97 -> 0 | I108: =I91+I98-I107-I97 -> 0 | J108: =J91+J98-J107-J97 -> 0 | K108: 0
A109: VI COMPREHENSIVE INCOME OR LOSS FOR THE PERIOD (ADP 078+097) | G109: 098 | H109: =H89+H108 -> 1,699,818 | I109: =I89+I108 -> -446,002 | J109: =J89+J108 -> 3,803,540 | K109: 918,648
A110: APPENDIX to the Statement on comprehensive income (to be filled in by undertakings that draw up consolidated statements)
A111: VI COMPREHENSIVE INCOME OR LOSS FOR THE PERIOD (ADP 100+101) | G111: 099 | H111: =H112+H113 -> 0 | I111: =I112+I113 -> 0 | J111: =J112+J113 -> 0 | K111: =K112+K113 -> 0
A112: 1 Attributable to owners of the parent | G112: 100 | H112: 0 | I112: 0 | J112: 0 | K112: 0
A113: 2 Attributable to minority (non-controlling) interest | G113: 101 | H113: 0 | I113: 0 | J113: 0 | K113: 0

Sheet CF_I
A1: STATEMENT OF CASH FLOWS - indirect method
A2: for the period 01.01.2025 to 30.09.2025
A3: in EUR
A4: Submitter: AD PLASTIK d.d.
A5: Item | G5: ADP code | H5: Same period of the previous year | I5: Current period
A6: 1 | G6: 2 | H6: 3 | I6: 4
A7: Cash flow from operating activities
A8: 1 Pre-tax profit | G8: 001 | H8: 1,699,818 | I8: 4,216,593
A9: 2 Adjustments (ADP 003 to 010): | G9: 002 | H9: =H10+H11+H12+H13+H14+H15+H16+H17 -> 3,385,038 | I9: =I10+I11+I12+I13+I14+I15+I16+I17 -> 6,016,837
A10: a) Depreciation | G10: 003 | H10: 5,882,437 | I10: 7,265,080
A11: b) Gains and losses from sale and value adjustment of fixed tangible and intangible assets | G11: 004 | H11: -208,636 | I11: 239,355
A12: c) Gains and losses from sale and unrealised gains and losses and value adjustment of financial assets | G12: 005 | H12: 0 | I12: 0
A13: d) Interest and dividend income | G13: 006 | H13: -3,066,286 | I13: -2,397,253
A14: e) Interest expenses | G14: 007 | H14: 990,196 | I14: 894,990
A15: f) Provisions | G15: 008 | H15: -6,724 | I15: 0
A16: g) Exchange rate differences (unrealised) | G16: 009 | H16: 5 | I16: 14,665
A17: h) Other adjustments for non-cash transactions and unrealised gains and losses | G17: 010 | H17: -205,954 | I17: 0
A18: I Cash flow increase or decrease before changes in working capital (ADP 001+002) | G18: 011 | H18: =H8+H9 -> 5,084,856 | I18: =I8+I9 -> 10,233,430
A19: 3 Changes in the working capital (ADP 013 to 016) | G19: 012 | H19: =H20+H21+H22+H23 -> 3,759,178 | I19: =I20+I21+I22+I23 -> -309,113
A20: a) Increase or decrease in short-term liabilities | G20: 013 | H20: -2,043,144 | I20: 5,125,725
A21: b) Increase or decrease in short-term receivables | G21: 014 | H21: -2,283,369 | I21: -5,554,512
A22: c) Increase or decrease in inventories | G22: 015 | H22: 8,085,691 | I22: -137,480
A23: d) Other increase or decrease in working capital | G23: 016 | H23: 0 | I23: 257,154
A24: II Cash from operations (ADP 011+012) | G24: 017 | H24: =H18+H19 -> 8,844,034 | I24: =I18+I19 -> 9,924,317
A25: 4 Interest paid | G25: 018 | H25: -1,006,577 | I25: -951,997
A26: 5 Income tax paid | G26: 019 | H26: 0 | I26: 0
A27: A) NET CASH FLOW FROM OPERATING ACTIVITIES (ADP 017 to 019) | G27: 020 | H27: =H24+H25+H26 -> 7,837,457 | I27: =I24+I25+I26 -> 8,972,320
A28: Cash flow from investment activities
A29: 1 Cash receipts from sales of fixed tangible and intangible assets | G29: 021 | H29: 598,200 | I29: 122,666
A30: 2 Cash receipts from sales of financial instruments | G30: 022 | H30: 0 | I30: 0
A31: 3 Interest received | G31: 023 | H31: 123 | I31: 360,636
A32: 4 Dividends received | G32: 024 | H32: 617,862 | I32: 4,642,159
A33: 5 Cash receipts from repayment of loans and deposits | G33: 025 | H33: 1,633,140 | I33: 1,271,824
A34: 6 Other cash receipts from investment activities | G34: 026 | H34: 0 | I34: 0
A35: III Total cash receipts from investment activities (ADP 021 to 026) | G35: 027 | H35: =H29+H30+H31+H32+H33+H34 -> 2,849,325 | I35: =I29+I30+I31+I32+I33+I34 -> 6,397,285
A36: 1 Cash payments for the purchase of fixed tangible and intangible assets | G36: 028 | H36: -9,073,056 | I36: -3,343,530
A37: 2 Cash payments for the acquisition of financial instruments | G37: 029 | H37: 0 | I37: 0
A38: 3 Cash payments for loans and deposits for the period | G38: 030 | H38: 0 | I38: 0
A39: 4 Acquisition of a subsidiary, net of cash acquired | G39: 031 | H39: 0 | I39: 0
A40: 5 Other cash payments from investment activities | G40: 032 | H40: 0 | I40: 0
A41: IV Total cash payments from investment activities (ADP 028 to 032) | G41: 033 | H41: =H36+H37+H38+H39+H40 -> -9,073,056 | I41: =I36+I37+I38+I39+I40 -> -3,343,530
A42: B) NET CASH FLOW FROM INVESTMENT ACTIVITIES (ADP 027 +033) | G42: 034 | H42: =H35+H41 -> -6,223,731 | I42: =I35+I41 -> 3,053,755
A43: Cash flow from financing activities
A44: 1 Cash receipts from the increase in initial (subscribed) capital | G44: 035 | H44: 0 | I44: 0
A45: 2 Cash receipts from the issue of equity financial instruments and debt financial instruments | G45: 036 | H45: 0 | I45: 0
A46: 3 Cash receipts from credit principals, loans and other borrowings | G46: 037 | H46: 18,498,231 | I46: 13,812,398
A47: 4 Other cash receipts from financing activities | G47: 038 | H47: 0 | I47: 0
A48: V Total cash receipts from financing activities (ADP 035 to 038) | G48: 039 | H48: =H44+H45+H46+H47 -> 18,498,231 | I48: =I44+I45+I46+I47 -> 13,812,398
A49: 1 Cash payments for the repayment of credit principals, loans and other borrowings and debt financial instruments | G49: 040 | H49: -20,390,141 | I49: -22,379,418
A50: 2 Cash payments for dividends | G50: 041 | H50: 0 | I50: 0
A51: 3 Cash payments for finance lease | G51: 042 | H51: -525,940 | I51: -602,027
A52: 4 Cash payments for the redemption of treasury shares and decrease in initial (subscribed) capital | G52: 043 | H52: 0 | I52: 0
A53: 5 Other cash payments from financing activities | G53: 044 | H53: 0 | I53: 0
A54: VI Total cash payments from financing activities (ADP 040 to 044) | G54: 045 | H54: =H49+H50+H51+H52+H53 -> -20,916,081 | I54: =I49+I50+I51+I52+I53 -> -22,981,445
A55: C) NET CASH FLOW FROM FINANCING ACTIVITIES (ADP 039 +045) | G55: 046 | H55: =H48+H54 -> -2,417,850 | I55: =I48+I54 -> -9,169,047
A56: 1 Unrealised exchange rate differences in respect of cash and cash equivalents | G56: 047 | H56: -5 | I56: -26
A57: D) NET INCREASE OR DECREASE IN CASH FLOWS (ADP 020+034+046+047) | G57: 048 | H57: =H27+H42+H55+H56 -> -804,129 | I57: =I27+I42+I55+I56 -> 2,857,002
A58: E) CASH AND CASH EQUIVALENTS AT THE BEGINNING OF THE PERIOD | G58: 049 | H58: 418,519 | I58: 2,044,031
A59: F) CASH AND CASH EQUIVALENTS AT THE END OF THE PERIOD(ADP 048+049) | G59: 050 | H59: =H57+H58 -> -385,610 | I59: =I57+I58 -> 4,901,033

Sheet CF_D
A1: STATEMENT OF CASH FLOWS - direct method
A2: for the period __.__.____ to __.__.____
A3: in EUR
A4: Submitter: ____________________________________________________________________
A5: Item | G5: ADP code | H5: Same period of the previous year | I5: Current period
A6: 1 | G6: 2 | H6: 3 | I6: 4
A7: Cash flow from operating activities
A8: 1 Cash receipts from customers | G8: 001 | H8: 0 | I8: 0
A9: 2 Cash receipts from royalties, fees, commissions and other revenue | G9: 002 | H9: 0 | I9: 0
A10: 3 Cash receipts from insurance premiums | G10: 003 | H10: 0 | I10: 0
A11: 4 Cash receipts from tax refund | G11: 004 | H11: 0 | I11: 0
A12: 5 Other cash receipts from operating activities | G12: 005 | H12: 0 | I12: 0
A13: I Total cash receipts from operating activities (ADP 001 to 005) | G13: 006 | H13: =SUM(H8:H12) -> 0 | I13: =SUM(I8:I12) -> 0
A14: 1 Cash payments to suppliers | G14: 007 | H14: 0 | I14: 0
A15: 2 Cash payments to employees | G15: 008 | H15: 0 | I15: 0
A16: 3 Cash payments for insurance premiums | G16: 009 | H16: 0 | I16: 0
A17: 4 Interest paid | G17: 010 | H17: 0 | I17: 0
A18: 5 Income tax paid | G18: 011 | H18: 0 | I18: 0
A19: 6 Other cash payments from operating activities | G19: 012 | H19: 0 | I19: 0
A20: II Total cash payments from operating activities (ADP 007 to 012) | G20: 013 | H20: =SUM(H14:H19) -> 0 | I20: =SUM(I14:I19) -> 0
A21: A) NET CASH FLOW FROM OPERATING ACTIVITIES (ADP 006 + 013) | G21: 014 | H21: =H13+H20 -> 0 | I21: =I13+I20 -> 0
A22: Cash flow from investment activities
A23: 1 Cash receipts from sales of fixed tangible and intangible assets | G23: 015 | H23: 0 | I23: 0
A24: 2 Cash receipts from sales of financial instruments | G24: 016 | H24: 0 | I24: 0
A25: 3 Interest received | G25: 017 | H25: 0 | I25: 0
A26: 4 Dividends received | G26: 018 | H26: 0 | I26: 0
A27: 5 Cash receipts from the repayment of loans and deposits | G27: 019 | H27: 0 | I27: 0
A28: 6 Other cash receipts from investment activities | G28: 020 | H28: 0 | I28: 0
A29: III Total cash receipts from investment activities (ADP 015 to 020) | G29: 021 | H29: =SUM(H23:H28) -> 0 | I29: =SUM(I23:I28) -> 0
A30: 1 Cash payments for the purchase of fixed tangible and intangible assets | G30: 022 | H30: 0 | I30: 0
A31: 2 Cash payments for the acquisition of financial instruments | G31: 023 | H31: 0 | I31: 0
A32: 3 Cash payments for loans and deposits | G32: 024 | H32: 0 | I32: 0
A33: 4 Acquisition of a subsidiary, net of cash acquired | G33: 025 | H33: 0 | I33: 0
A34: 5 Other cash payments from investment activities | G34: 026 | H34: 0 | I34: 0
A35: IV Total cash payments from investment activities (ADP 022 to 026) | G35: 027 | H35: =SUM(H30:H34) -> 0 | I35: =SUM(I30:I34) -> 0
A36: B) NET CASH FLOW FROM INVESTMENT ACTIVITIES (ADP 021 + 027) | G36: 028 | H36: =H29+H35 -> 0 | I36: =I29+I35 -> 0
A37: Cash flow from financing activities | G37: 0
A38: 1 Cash receipts from the increase in initial (subscribed) capital | G38: 029 | H38: 0 | I38: 0
A39: 2 Cash receipts the from issue of equity financial instruments and debt financial instruments | G39: 030 | H39: 0 | I39: 0
A40: 3 Cash receipts from credit principals, loans and other borrowings | G40: 031 | H40: 0 | I40: 0
A41: 4 Other cash receipts from financing activities | G41: 032 | H41: 0 | I41: 0
A42: V Total cash receipts from financing activities (ADP 029 to 032) | G42: 033 | H42: =H41+H40+H39+H38 -> 0 | I42: =I41+I40+I39+I38 -> 0
A43: 1 Cash payments for the repayment of credit principals, loans andother borrowings and debt financial instruments | G43: 034 | H43: 0 | I43: 0
A44: 2 Cash payments for dividends | G44: 035 | H44: 0 | I44: 0
A45: 3 Cash payments for finance lease | G45: 036 | H45: 0 | I45: 0
A46: 4 Cash payments for the redemption of treasury shares and decrease in initial (subscribed) capital | G46: 037 | H46: 0 | I46: 0
A47: 5 Other cash payments from financing activities | G47: 038 | H47: 0 | I47: 0
A48: VI Total cash payments from financing activities (ADP 034 to 038) | G48: 039 | H48: =H47+H46+H45+H44+H43 -> 0 | I48: =I47+I46+I45+I44+I43 -> 0
A49: C) NET CASH FLOW FROM FINANCING ACTIVITIES (ADP 033 +039) | G49: 040 | H49: =H48+H42 -> 0 | I49: =I48+I42 -> 0
A50: 1 Unrealised exchange rate differences in respect of cash and cash equivalents | G50: 041 | H50: 0 | I50: 0
A51: D) NET INCREASE OR DECREASE IN CASH FLOWS (ADP 014 + 028 + 040 + 041) | G51: 042 | H51: =H21+H36+H49+H50 -> 0 | I51: =I21+I36+I49+I50 -> 0
A52: E) CASH AND CASH EQUIVALENTS AT THE BEGINNING OF THE PERIOD | G52: 043 | H52: 0 | I52: 0
A53: F) CASH AND CASH EQUIVALENTS AT THE END OF THE PERIOD (042+043) | G53: 044 | H53: =H52+H51 -> 0 | I53: =I52+I51 -> 0

Sheet SOCE
A1: STATEMENT OF CHANGES IN EQUITY
C2: for the period from | E2: 2025-01-01 | F2: to | G2: 2025-09-30 | X2: in EUR
A3: Item | G3: ADP code | H3: Attributable to owners of the parent | X3: Minority (non-controlling) interest | Y3: Total capital and reserves
H4: Initial (subscribed) capital | I4: Capital reserves | J4: Legal reserves | K4: Reserves for treasury shares | L4: Treasury shares and holdings (deductible item) | M4: Statutory reserves | N4: Other reserves | O4: Revaluation reserves | P4: Fair value of financial assets through other comprehensive income (available for sale) | Q4: Cash flow hedge - effective portion | R4: Hedge of a net investment in a foreign operation - effective portion | S4: Other fair value reserves | T4: Exchange rate differences from translation of foreign operations | U4: Retained profit / loss brought forward | V4: Profit/loss for the business year | W4: Total attributable to owners of the parent
A5: 1 | G5: 2 | H5: 3 | I5: 4 | J5: 5 | K5: 6 | L5: 7 | M5: 8 | N5: 9 | O5: 10 | P5: 11 | Q5: 12 | R5: 13 | S5: 14 | T5: 15 | U5: 16 | V5: 17 | W5: 18 (3 to 6 - 7 + 8 to 17) | X5: 19 | Y5: 20 (18+19)
A6: Previous period
A7: 1 Balance on the first day of the previous business year | G7: 01 | H7: 54,594,592 | I7: 25,884,472 | J7: 813,439 | K7: 2,772,641 | L7: 871,127 | M7: 0 | N7: 6,880,988 | O7: 0 | P7: 0 | Q7: 0 | R7: 0 | S7: 0 | T7: 0 | U7: 0 | V7: 1,039,559 | W7: =H7+I7+J7+K7-L7+M7+N7+O7+P7+Q7+R7+U7+V7+S7+T7 -> 91,114,564 | X7: 0 | Y7: =W7+X7 -> 91,114,564
A8: 2 Changes in accounting policies | G8: 02 | H8: 0 | I8: 0 | J8: 0 | K8: 0 | L8: 0 | M8: 0 | N8: 0 | O8: 0 | P8: 0 | Q8: 0 | R8: 0 | S8: 0 | T8: 0 | U8: 0 | V8: 0 | W8: =H8+I8+J8+K8-L8+M8+N8+O8+P8+Q8+R8+U8+V8+S8+T8 -> 0 | X8: 0 | Y8: =W8+X8 -> 0
A9: 3 Correction of errors | G9: 03 | H9: 0 | I9: 0 | J9: 0 | K9: 0 | L9: 0 | M9: 0 | N9: 0 | O9: 0 | P9: 0 | Q9: 0 | R9: 0 | S9: 0 | T9: 0 | U9: 0 | V9: 0 | W9: 0 | X9: 0 | Y9: 0
A10: 4 Balance on the first day of the previous business year (restated) (ADP 01 to 03) | G10: 04 | H10: =H7+H8+H9 -> 54,594,592 | I10: =I7+I8+I9 -> 25,884,472 | J10: 813,439 | K10: 2,772,641 | L10: 871,127 | M10: 0 | N10: 6,880,988 | O10: 0 | P10: 0 | Q10: 0 | R10: 0 | S10: 0 | T10: 0 | U10: 0 | V10: 1,039,559 | W10: 91,114,564 | X10: 0 | Y10: 91,114,564
A11: 5 Profit/loss of the period | G11: 05 | H11: 0 | I11: 0 | J11: 0 | K11: 0 | L11: 0 | M11: 0 | N11: 0 | O11: 0 | P11: 0 | Q11: 0 | R11: 0 | S11: 0 | T11: 0 | U11: 0 | V11: 1,699,818 | W11: =H11+I11+J11+K11-L11+M11+N11+O11+P11+Q11+R11+U11+V11+S11+T11 -> 1,699,818 | X11: 0 | Y11: =W11+X11 -> 1,699,818
A12: 6 Exchange rate differences from translation of foreign operations | G12: 06 | H12: 0 | I12: 0 | J12: 0 | K12: 0 | L12: 0 | M12: 0 | N12: 0 | O12: 0 | P12: 0 | Q12: 0 | R12: 0 | S12: 0 | T12: 0 | U12: 0 | V12: 0 | W12: 0 | X12: 0 | Y12: 0
A13: 7 Changes in revaluation reserves of fixed tangible and intangible assets | G13: 07 | H13: 0 | I13: 0 | J13: 0 | K13: 0 | L13: 0 | M13: 0 | N13: 0 | O13: 0 | P13: 0 | Q13: 0 | R13: 0 | S13: 0 | T13: 0 | U13: 0 | V13: 0 | W13: 0 | X13: 0 | Y13: 0
A14: 8 Gains or losses from subsequent measurement of financial assets at fair value through other comprehensive income (available for sale) | G14: 08 | H14: 0 | I14: 0 | J14: 0 | K14: 0 | L14: 0 | M14: 0 | N14: 0 | O14: 0 | P14: 0 | Q14: 0 | R14: 0 | S14: 0 | T14: 0 | U14: 0 | V14: 0 | W14: 0 | X14: 0 | Y14: 0
A15: 9 Profit or loss arising from effective cash flow hedge | G15: 09 | H15: 0 | I15: 0 | J15: 0 | K15: 0 | L15: 0 | M15: 0 | N15: 0 | O15: 0 | P15: 0 | Q15: 0 | R15: 0 | S15: 0 | T15: 0 | U15: 0 | V15: 0 | W15: 0 | X15: 0 | Y15: 0
A16: 10 Profit or loss arising from effective hedge of a net investment in a foreign operation | G16: 10 | H16: 0 | I16: 0 | J16: 0 | K16: 0 | L16: 0 | M16: 0 | N16: 0 | O16: 0 | P16: 0 | Q16: 0 | R16: 0 | S16: 0 | T16: 0 | U16: 0 | V16: 0 | W16: 0 | X16: 0 | Y16: 0
A17: 11 Share in other comprehensive income/loss of companies linked by virtue of participating interests | G17: 11 | H17: 0 | I17: 0 | J17: 0 | K17: 0 | L17: 0 | M17: 0 | N17: 0 | O17: 0 | P17: 0 | Q17: 0 | R17: 0 | S17: 0 | T17: 0 | U17: 0 | V17: 0 | W17: 0 | X17: 0 | Y17: 0
A18: 12 Actuarial gains/losses on the defined benefit obligation | G18: 12 | H18: 0 | I18: 0 | J18: 0 | K18: 0 | L18: 0 | M18: 0 | N18: 0 | O18: 0 | P18: 0 | Q18: 0 | R18: 0 | S18: 0 | T18: 0 | U18: 0 | V18: 0 | W18: 0 | X18: 0 | Y18: 0
A19: 13 Other changes in equity unrelated to owners | G19: 13 | H19: 0 | I19: 0 | J19: 0 | K19: 0 | L19: 0 | M19: 0 | N19: 0 | O19: 0 | P19: 0 | Q19: 0 | R19: 0 | S19: 0 | T19: 0 | U19: 0 | V19: 0 | W19: 0 | X19: 0 | Y19: 0
A20: 14 Tax on transactions recognised directly in equity | G20: 14 | H20: 0 | I20: 0 | J20: 0 | K20: 0 | L20: 0 | M20: 0 | N20: 0 | O20: 0 | P20: 0 | Q20: 0 | R20: 0 | S20: 0 | T20: 0 | U20: 0 | V20: 0 | W20: 0 | X20: 0 | Y20: 0
A21: 15 Decrease in initial (subscribed) capital (other than arising from the pre-bankruptcy settlement procedure or from the reinvestment of profit) | G21: 15 | H21: 0 | I21: 0 | J21: 0 | K21: 0 | L21: 0 | M21: 0 | N21: 0 | O21: 0 | P21: 0 | Q21: 0 | R21: 0 | S21: 0 | T21: 0 | U21: 0 | V21: 0 | W21: 0 | X21: 0 | Y21: 0
A22: 16 Decrease in initial (subscribed) capital arising from the pre-bankruptcy settlement procedure | G22: 16 | H22: 0 | I22: 0 | J22: 0 | K22: 0 | L22: 0 | M22: 0 | N22: 0 | O22: 0 | P22: 0 | Q22: 0 | R22: 0 | S22: 0 | T22: 0 | U22: 0 | V22: 0 | W22: 0 | X22: 0 | Y22: 0
A23: 17 Decrease in initial (subscribed) capital arising from the reinvestment of profit | G23: 17 | H23: 0 | I23: 0 | J23: 0 | K23: 0 | L23: 0 | M23: 0 | N23: 0 | O23: 0 | P23: 0 | Q23: 0 | R23: 0 | S23: 0 | T23: 0 | U23: 0 | V23: 0 | W23: 0 | X23: 0 | Y23: 0
A24: 18 Redemption of treasury shares/holdings | G24: 18 | H24: 0 | I24: 0 | J24: 0 | K24: 0 | L24: 0 | M24: 0 | N24: 0 | O24: 0 | P24: 0 | Q24: 0 | R24: 0 | S24: 0 | T24: 0 | U24: 0 | V24: 0 | W24: 0 | X24: 0 | Y24: 0
A25: 19 Payments from members/shareholders | G25: 19 | H25: 0 | I25: 0 | J25: 0 | K25: 0 | L25: 0 | M25: 0 | N25: 0 | O25: 0 | P25: 0 | Q25: 0 | R25: 0 | S25: 0 | T25: 0 | U25: 0 | V25: 0 | W25: 0 | X25: 0 | Y25: 0
A26: 20 Payment of share in profit/dividend | G26: 20 | H26: 0 | I26: 0 | J26: 0 | K26: 0 | L26: 0 | M26: 0 | N26: 0 | O26: 0 | P26: 0 | Q26: 0 | R26: 0 | S26: 0 | T26: 0 | U26: 0 | V26: 0 | W26: 0 | X26: 0 | Y26: 0
A27: 21 Other distributions and payments to members/shareholders | G27: 21 | H27: 0 | I27: 0 | J27: 0 | K27: -1,901,514 | L27: 0 | M27: 0 | N27: 1,612,517 | O27: 0 | P27: 0 | Q27: 0 | R27: 0 | S27: 0 | T27: 0 | U27: 288,997 | V27: 0 | W27: 0 | X27: 0 | Y27: 0
A28: 22 Transfer to reserves according to the annual schedule | G28: 22 | H28: 0 | I28: 0 | J28: 0 | K28: 0 | L28: 0 | M28: 0 | N28: 0 | O28: 0 | P28: 0 | Q28: 0 | R28: 0 | S28: 0 | T28: 0 | U28: 1,039,559 | V28: -1,039,559 | W28: 0 | X28: 0 | Y28: 0
A29: 23 Increase in reserves arising from the pre-bankruptcy settlement procedure | G29: 23 | H29: 0 | I29: 0 | J29: 0 | K29: 0 | L29: 0 | M29: 0 | N29: 0 | O29: 0 | P29: 0 | Q29: 0 | R29: 0 | S29: 0 | T29: 0 | U29: 0 | V29: 0 | W29: 0 | X29: 0 | Y29: 0
A30: 24 Balance on the last day of the previous business year reporting period (ADP 04 to 23) | G30: 24 | H30: =SUM(H10:H29) -> 54,594,592 | I30: =SUM(I10:I29) -> 25,884,472 | J30: 813,439 | K30: 871,127 | L30: 871,127 | M30: 0 | N30: 8,493,505 | O30: 0 | P30: 0 | Q30: 0 | R30: 0 | S30: 0 | T30: 0 | U30: 1,328,556 | V30: 1,699,818 | W30: 92,814,382 | X30: 0 | Y30: 92,814,382
A31: APPENDIX TO THE STATEMENT OF CHANGES IN EQUITY (to be filled in by undertakings that draw up financial statements in accordance with the IFRS)
A32: I OTHER COMPREHENSIVE INCOME OF THE PREVIOUS PERIOD, NET OF TAX (ADP 06 to 14) | G32: 25 | H32: =SUM(H12:H20) -> 0 | I32: =SUM(I12:I20) -> 0 | J32: 0 | K32: 0 | L32: 0 | M32: 0 | N32: 0 | O32: 0 | P32: 0 | Q32: 0 | R32: 0 | S32: 0 | T32: 0 | U32: 0 | V32: 0 | W32: 0 | X32: 0 | Y32: 0
A33: II COMPREHENSIVE INCOME OR LOSS FOR THE PREVIOUS PERIOD (ADP 05+25) | G33: 26 | H33: =H11+H32 -> 0 | I33: =I11+I32 -> 0 | J33: 0 | K33: 0 | L33: 0 | M33: 0 | N33: 0 | O33: 0 | P33: 0 | Q33: 0 | R33: 0 | S33: 0 | T33: 0 | U33: 0 | V33: 1,699,818 | W33: 1,699,818 | X33: 0 | Y33: 1,699,818
A34: III TRANSACTIONS WITH OWNERS IN THE PREVIOUS PERIOD RECOGNISED DIRECTLY IN EQUITY (ADP 15 to 23) | G34: 27 | H34: =SUM(H21:H29) -> 0 | I34: =SUM(I21:I29) -> 0 | J34: 0 | K34: -1,901,514 | L34: 0 | M34: 0 | N34: 1,612,517 | O34: 0 | P34: 0 | Q34: 0 | R34: 0 | S34: 0 | T34: 0 | U34: 1,328,556 | V34: -1,039,559 | W34: 0 | X34: 0 | Y34: 0
A35: Current period
A36: 1 Balance on the first day of the current business year | G36: 28 | H36: 54,594,592 | I36: 25,839,403 | J36: 813,439 | K36: 793,595 | L36: 793,595 | M36: 0 | N36: 9,109,602 | O36: 0 | P36: 0 | Q36: 0 | R36: 0 | S36: 0 | T36: 0 | U36: 789,991 | V36: 397,714 | W36: =H36+I36+J36+K36-L36+M36+N36+O36+P36+Q36+R36+U36+V36+S36+T36 -> 91,544,741 | X36: 0 | Y36: =W36+X36 -> 91,544,741
A37: 2 Changes in accounting policies | G37: 29 | H37: 0 | I37: 0 | J37: 0 | K37: 0 | L37: 0 | M37: 0 | N37: 0 | O37: 0 | P37: 0 | Q37: 0 | R37: 0 | S37: 0 | T37: 0 | U37: 0 | V37: 0 | W37: =H37+I37+J37+K37-L37+M37+N37+O37+P37+Q37+R37+U37+V37+S37+T37 -> 0 | X37: 0 | Y37: 0
A38: 3 Correction of errors | G38: 30 | H38: 0 | I38: 0 | J38: 0 | K38: 0 | L38: 0 | M38: 0 | N38: 0 | O38: 0 | P38: 0 | Q38: 0 | R38: 0 | S38: 0 | T38: 0 | U38: 0 | V38: 0 | W38: 0 | X38: 0 | Y38: 0
A39: 4 Balance on the first day of the current business year (restated) (AOP 28 to 30) | G39: 31 | H39: =H36+H37+H38 -> 54,594,592 | I39: =I36+I37+I38 -> 25,839,403 | J39: 813,439 | K39: 793,595 | L39: 793,595 | M39: 0 | N39: 9,109,602 | O39: 0 | P39: 0 | Q39: 0 | R39: 0 | S39: 0 | T39: 0 | U39: 789,991 | V39: 397,714 | W39: 91,544,741 | X39: 0 | Y39: 91,544,741
A40: 5 Profit/loss of the period | G40: 32 | H40: 0 | I40: 0 | J40: 0 | K40: 0 | L40: 0 | M40: 0 | N40: 0 | O40: 0 | P40: 0 | Q40: 0 | R40: 0 | S40: 0 | T40: 0 | U40: 0 | V40: 3,803,540 | W40: =H40+I40+J40+K40-L40+M40+N40+O40+P40+Q40+R40+U40+V40+S40+T40 -> 3,803,540 | X40: 0 | Y40: =W40+X40 -> 3,803,540
A41: 6 Exchange rate differences from translation of foreign operations | G41: 33 | H41: 0 | I41: 0 | J41: 0 | K41: 0 | L41: 0 | M41: 0 | N41: 0 | O41: 0 | P41: 0 | Q41: 0 | R41: 0 | S41: 0 | T41: 0 | U41: 0 | V41: 0 | W41: 0 | X41: 0 | Y41: 0
A42: 7 Changes in revaluation reserves of fixed tangible and intangible assets | G42: 34 | H42: 0 | I42: 0 | J42: 0 | K42: 0 | L42: 0 | M42: 0 | N42: 0 | O42: 0 | P42: 0 | Q42: 0 | R42: 0 | S42: 0 | T42: 0 | U42: 0 | V42: 0 | W42: 0 | X42: 0 | Y42: 0
A43: 8 Gains or losses from subsequent measurement of financial assets at fair value through other comprehensive income (available for sale) | G43: 35 | H43: 0 | I43: 0 | J43: 0 | K43: 0 | L43: 0 | M43: 0 | N43: 0 | O43: 0 | P43: 0 | Q43: 0 | R43: 0 | S43: 0 | T43: 0 | U43: 0 | V43: 0 | W43: 0 | X43: 0 | Y43: 0
A44: 9 Profit or loss arising from effective cash flow hedge | G44: 36 | H44: 0 | I44: 0 | J44: 0 | K44: 0 | L44: 0 | M44: 0 | N44: 0 | O44: 0 | P44: 0 | Q44: 0 | R44: 0 | S44: 0 | T44: 0 | U44: 0 | V44: 0 | W44: 0 | X44: 0 | Y44: 0
A45: 10 Profit or loss arising from effective hedge of a net investment in a foreign operation | G45: 37 | H45: 0 | I45: 0 | J45: 0 | K45: 0 | L45: 0 | M45: 0 | N45: 0 | O45: 0 | P45: 0 | Q45: 0 | R45: 0 | S45: 0 | T45: 0 | U45: 0 | V45: 0 | W45: 0 | X45: 0 | Y45: 0
A46: 11 Share in other comprehensive income/loss of companies linked by virtue of participating interests | G46: 38 | H46: 0 | I46: 0 | J46: 0 | K46: 0 | L46: 0 | M46: 0 | N46: 0 | O46: 0 | P46: 0 | Q46: 0 | R46: 0 | S46: 0 | T46: 0 | U46: 0 | V46: 0 | W46: 0 | X46: 0 | Y46: 0
A47: 12 Actuarial gains/losses on the defined benefit obligation | G47: 39 | H47: 0 | I47: 0 | J47: 0 | K47: 0 | L47: 0 | M47: 0 | N47: 0 | O47: 0 | P47: 0 | Q47: 0 | R47: 0 | S47: 0 | T47: 0 | U47: 0 | V47: 0 | W47: 0 | X47: 0 | Y47: 0
A48: 13 Other changes in equity unrelated to owners | G48: 40 | H48: 0 | I48: 0 | J48: 0 | K48: 0 | L48: 0 | M48: 0 | N48: 0 | O48: 0 | P48: 0 | Q48: 0 | R48: 0 | S48: 0 | T48: 0 | U48: 0 | V48: 0 | W48: 0 | X48: 0 | Y48: 0
A49: 14 Tax on transactions recognised directly in equity | G49: 41 | H49: 0 | I49: 0 | J49: 0 | K49: 0 | L49: 0 | M49: 0 | N49: 0 | O49: 0 | P49: 0 | Q49: 0 | R49: 0 | S49: 0 | T49: 0 | U49: 0 | V49: 0 | W49: 0 | X49: 0 | Y49: 0
A50: 15 Decrease in initial (subscribed) capital (other than arising from the pre-bankruptcy settlement procedure or from the reinvestment of profit) | G50: 42 | H50: 0 | I50: 0 | J50: 0 | K50: 0 | L50: 0 | M50: 0 | N50: 0 | O50: 0 | P50: 0 | Q50: 0 | R50: 0 | S50: 0 | T50: 0 | U50: 0 | V50: 0 | W50: 0 | X50: 0 | Y50: 0
A51: 16 Decrease in initial (subscribed) capital arising from the pre-bankruptcy settlement procedure | G51: 43 | H51: 0 | I51: 0 | J51: 0 | K51: 0 | L51: 0 | M51: 0 | N51: 0 | O51: 0 | P51: 0 | Q51: 0 | R51: 0 | S51: 0 | T51: 0 | U51: 0 | V51: 0 | W51: 0 | X51: 0 | Y51: 0
A52: 17 Decrease in initial (subscribed) capital arising from the reinvestment of profit | G52: 44 | H52: 0 | I52: 0 | J52: 0 | K52: 0 | L52: 0 | M52: 0 | N52: 0 | O52: 0 | P52: 0 | Q52: 0 | R52: 0 | S52: 0 | T52: 0 | U52: 0 | V52: 0 | W52: 0 | X52: 0 | Y52: 0
A53: 18 Redemption of treasury shares/holdings | G53: 45 | H53: 0 | I53: 0 | J53: 0 | K53: 0 | L53: 0 | M53: 0 | N53: 0 | O53: 0 | P53: 0 | Q53: 0 | R53: 0 | S53: 0 | T53: 0 | U53: 0 | V53: 0 | W53: 0 | X53: 0 | Y53: 0
A54: 19 Payments from members/shareholders | G54: 46 | H54: 0 | I54: 0 | J54: 0 | K54: 0 | L54: 0 | M54: 0 | N54: 0 | O54: 0 | P54: 0 | Q54: 0 | R54: 0 | S54: 0 | T54: 0 | U54: 0 | V54: 0 | W54: 0 | X54: 0 | Y54: 0
A55: 20 Payment of share in profit/dividend | G55: 47 | H55: 0 | I55: 0 | J55: 0 | K55: 0 | L55: 0 | M55: 0 | N55: 0 | O55: 0 | P55: 0 | Q55: 0 | R55: 0 | S55: 0 | T55: 0 | U55: 0 | V55: 0 | W55: 0 | X55: 0 | Y55: 0
A56: 21 Other distributions and payments to members/shareholders | G56: 48 | H56: 0 | I56: 0 | J56: 0 | K56: 0 | L56: 0 | M56: 0 | N56: 0 | O56: 0 | P56: 0 | Q56: 0 | R56: 0 | S56: 0 | T56: 0 | U56: 0 | V56: 0 | W56: 0 | X56: 0 | Y56: 0
A57: 22 Carryforward per annual plane | G57: 49 | H57: 0 | I57: 0 | J57: 0 | K57: 0 | L57: 0 | M57: 0 | N57: 0 | O57: 0 | P57: 0 | Q57: 0 | R57: 0 | S57: 0 | T57: 0 | U57: 397,714 | V57: -397,714 | W57: 0 | X57: 0 | Y57: 0
A58: 23 Increase in reserves arising from the pre-bankruptcy settlement procedure | G58: 50 | H58: 0 | I58: 0 | J58: 0 | K58: 0 | L58: 0 | M58: 0 | N58: 0 | O58: 0 | P58: 0 | Q58: 0 | R58: 0 | S58: 0 | T58: 0 | U58: 0 | V58: 0 | W58: 0 | X58: 0 | Y58: 0
A59: 24 Balance on the last day of the current business year reporting period (ADP 31 to 50) | G59: 51 | H59: =SUM(H39:H58) -> 54,594,592 | I59: 25,839,403 | J59: 813,439 | K59: 793,595 | L59: 793,595 | M59: 0 | N59: 9,109,602 | O59: 0 | P59: 0 | Q59: 0 | R59: 0 | S59: 0 | T59: 0 | U59: =SUM(U39:U58) -> 1,187,705 | V59: =SUM(V39:V58) -> 3,803,540 | W59: =SUM(W39:W58) -> 95,348,281 | X59: =SUM(X39:X58) -> 0 | Y59: =SUM(Y39:Y58) -> 95,348,281
A60: APPENDIX TO THE STATEMENT OF CHANGES IN EQUITY (to be filled in by undertakings that draw up financial statements in accordance with the IFRS)
A61: I OTHER COMPREHENSIVE INCOME FOR THE CURRENT PERIOD, NET OF TAX (ADP 33 to 41) | G61: 52 | H61: =SUM(H41:H49) -> 0 | I61: 0 | J61: 0 | K61: 0 | L61: 0 | M61: 0 | N61: 0 | O61: 0 | P61: 0 | Q61: 0 | R61: 0 | S61: 0 | T61: 0 | U61: =SUM(U41:U49) -> 0 | V61: =SUM(V41:V49) -> 0 | W61: =SUM(W41:W49) -> 0 | X61: =SUM(X41:X49) -> 0 | Y61: =SUM(Y41:Y49) -> 0
A62: II COMPREHENSIVE INCOME OR LOSS FOR THE CURRENT PERIOD (ADP 32 do 52) | G62: 53 | H62: =H40+H61 -> 0 | I62: 0 | J62: 0 | K62: 0 | L62: 0 | M62: 0 | N62: 0 | O62: 0 | P62: 0 | Q62: 0 | R62: 0 | S62: 0 | T62: 0 | U62: =U40+U61 -> 0 | V62: =V40+V61 -> 3,803,540 | W62: =W40+W61 -> 3,803,540 | X62: =X40+X61 -> 0 | Y62: =Y40+Y61 -> 3,803,540
A63: III TRANSACTIONS WITH OWNERS IN THE CURRENT PERIOD RECOGNISED DIRECTLY IN EQUITY (ADP 42 to 50) | G63: 54 | H63: =SUM(H50:H58) -> 0 | I63: 0 | J63: 0 | K63: 0 | L63: 0 | M63: 0 | N63: 0 | O63: 0 | P63: 0 | Q63: 0 | R63: 0 | S63: 0 | T63: 0 | U63: =SUM(U50:U58) -> 397,714 | V63: =SUM(V50:V58) -> -397,714 | W63: =SUM(W50:W58) -> 0 | X63: =SUM(X50:X58) -> 0 | Y63: =SUM(Y50:Y58) -> 0

Sheet Notes
A1: NOTES TO FINANCIAL STATEMENTS - TFI (drawn up for quarterly reporting periods) Name of the issuer: AD PLASTIK d.d. Headquarter: Ul. Antuna Gustava Matoša 8, 21210, Solin, Croatia Personal identification number (OIB): 48351740621; MBS: 060007090 Reporting period: 01.01.2025. do 30.09.2025. Notes to financial statements are available as part of AD Plastik Group's Unaudited financial statement. Unaudited financial statement is available on Zagreb Stock Exchange website. AD Plastik Group Integrated annual report for 2024 year is available on Zagreb Stock Exchange website. Same accounting policies are applied while drawing up financial statements for current reporting period as in the latest annual financial statements. AD Plastik d.d. has issued corporate guarantees for the needs of subsidiaries in the following amounts: to banks EUR 7,700 thousand and to suppliers EUR 50 thousand. Amount owed by AD Plastik d.d. and falling due after more than five years amounts to EUR 412 thousand. The average number of employees of AD Plastik d.d. in the period from 01.01.2025. to 30.09.2025. was 1,123. In intangible assets in the period from 01.01.2025. to 30.09.2025., the cost of net salaries and wages of EUR 430,391, the cost of taxes and contributions from salaries of EUR 177,777 and the cost of contributions to salaries of EUR 94,062 were capitalized. During the reporting period, deferred tax assets decreased by 413 thousand euros, while there were no changes in deferred tax liabilities. Deferred tax assets of AD Plastik d.d. on 31.12.2024. amounts to EUR 3,164 thousand, while the deferred tax liability amounts to EUR 386 thousand.
